bitfinex/quotes_ETHUSD_20240717
["timestamp","ask_amount","ask_price","bid_price","bid_amount"]
[1721223172795,2.89973,3448.6,3447.6,1.56709]
[1721223172995,2.8996,3448.8,3447.8,2.90038]
[1721223173309,5.89931,3449.1,3448.1,2.90008]
[1721223173310,3.0,3449.1,3448.1,2.90008]
[1721223173541,2.89889,3449.6,3448.1,1.7]
[1721223173836,2.89907,3449.4,3448.3,2.89989]
[1721223174050,5.89904,3449.5,3448.4,3.649873]
[1721223174226,5.89904,3449.5,3448.6,2.8997]
[1721223174227,5.89903,3449.5,3448.6,2.8997]
[1721223174601,2.89906,3449.4,3448.5,2.8998]
[1721223174854,2.89906,3449.4,3448.6,1.2049673]
[1721223175361,2.89906,3449.4,3448.6,4.1046873]
[1721223176933,3.0,3449.5,3448.7,2.89963]
[1721223177140,2.4752,3449.9,3448.7,2.89963]
[1721223177343,2.89889,3449.6,3448.8,0.41045973]
[1721223177523,3.0,3449.5,3448.8,0.41045973]
[1721223178022,2.89846,3450.1,3449.0,2.89932]
[1721223178364,3.462,3451.3,3449.7,2.89874]
[1721223178365,5.37333,3450.6,3449.7,2.89874]
[1721223178569,6.35887,3452.0,3449.8,3.478461]
[1721223178570,2.89788,3450.8,3449.8,3.478461]
[1721223178757,2.89788,3450.8,3449.8,2.8987]
[1721223178959,2.89805,3450.6,3449.8,2.8987]
[1721223179331,2.4752,3451.2,3449.6,2.89887]
[1721223179332,2.89813,3450.5,3449.6,2.89882]
[1721223179663,5.37279,3451.2,3449.7,0.579784]
[1721223179664,2.89844,3450.2,3449.7,0.579784]
[1721223179844,2.89844,3450.2,3449.3,2.89913]
[1721223180054,2.89846,3450.1,3449.3,2.89913]
[1721223180354,5.89811,3450.6,3449.6,2.89883]
[1721223180572,5.89811,3450.6,3449.7,0.634787]
[1721223180573,2.89828,3450.4,3449.7,0.634787]
[1721223180785,3.0,3450.3,3449.7,0.634787]
[1721223181365,3.0,3450.3,3449.6,2.89887]
[1721223181568,3.0,3450.3,3449.4,2.89899]
[1721223181783,3.0,3450.3,3449.6,2.89885]
[1721223182094,7.3,3451.6,3449.7,0.0579661]
[1721223182229,7.3,3451.6,3450.5,2.89805]
[1721223182230,2.89723,3451.6,3450.5,2.89805]
[1721223182432,2.89713,3451.7,3450.8,2.89784]
[1721223183067,2.89713,3451.7,3450.9,2.89778]
[1721223183274,2.89696,3451.9,3451.1,2.89761]
[1721223183573,2.89696,3451.9,3451.0,0.55]
[1721223183574,2.89705,3451.8,3451.0,0.55]
[1721223183775,2.4752,3452.0,3450.6,0.459805]
[1721223183776,2.89721,3451.6,3450.6,0.459805]
[1721223183940,2.89737,3451.4,3450.6,0.459805]
[1721223184272,2.89737,3451.4,3449.9,9.07]
[1721223184273,2.89784,3450.9,3449.9,7.37]
[1721223184475,2.89784,3450.9,3449.8,2.89871]
[1721223184476,2.89798,3450.7,3449.8,2.89871]
[1721223184693,3.0,3450.8,3450.0,2.89852]
[1721223184837,3.0,3450.8,3450.1,1.184708]
[1721223185039,3.0,3451.1,3450.2,2.8983]
[1721223185397,3.0,3451.1,3450.1,4.238708]
[1721223185398,5.372,3452.1,3450.9,2.89778]
[1721223185539,2.89689,3452.0,3451.2,2.89752]
[1721223185741,2.89689,3452.0,3450.5,2.89806]
[1721223185742,2.89726,3451.6,3450.7,2.89795]
[1721223186084,2.89726,3451.6,3450.8,2.89786]
[1721223186308,2.89706,3451.8,3450.9,2.89779]
[1721223186468,2.89712,3451.7,3450.9,2.89779]
[1721223186669,2.4752,3452.1,3451.2,2.89753]
[1721223186854,2.89687,3452.0,3451.2,3.357283]
[1721223187193,2.89655,3452.4,3451.5,2.89721]
[1721223187426,2.8964,3452.6,3451.6,2.8972]
[1721223187697,5.37151,3452.7,3451.7,2.89708]
[1721223187909,5.37151,3452.7,3452.0,2.89686]
[1721223187910,2.4752,3452.7,3452.0,2.89686]
[1721223188060,2.89595,3453.1,3452.0,2.89686]
[1721223188061,2.8962,3452.8,3452.0,2.89686]
[1721223188260,7.3,3453.9,3452.0,2.89686]
[1721223188261,2.89543,3453.8,3452.6,2.89635]
[1721223188454,2.8954,3453.8,3452.7,3.50417426]
[1721223188674,2.4752,3454.0,3452.7,0.55]
[1721223188911,2.4752,3454.0,3452.1,9.07]
[1721223189059,2.89604,3453.0,3451.6,8.88055311]
[1721223189262,2.89604,3453.0,3451.8,2.89696]
[1721223189457,2.89587,3453.2,3451.9,0.55]
[1721223189458,2.89612,3452.9,3451.9,0.55]
[1721223189666,2.89612,3452.9,3451.6,0.55]
[1721223189667,2.89651,3452.5,3451.6,0.55]
[1721223189971,2.89651,3452.5,3451.4,2.8973]
[1721223189972,3.0,3452.4,3451.4,0.55]
[1721223190197,6.775851,3452.4,3451.4,0.55]
[1721223190409,2.89662,3452.3,3450.9,0.1173115]
[1721223190699,3.0,3452.3,3451.1,2.89762]
[1721223191000,2.89654,3452.4,3451.4,2.89737]
[1721223191300,2.89687,3452.0,3450.9,0.1173115]
[1721223191468,5.764887,3451.9,3450.7,4.230145]
[1721223191669,2.89746,3451.3,3450.0,4.40972184]
[1721223191855,2.89746,3451.3,3449.8,0.60670598]
[1721223191856,2.89772,3451.0,3449.8,13.32271]
[1721223192061,2.89779,3450.9,3449.8,7.37]
[1721223192263,2.89763,3451.1,3449.9,1.7]
[1721223192499,3.0,3451.0,3450.1,2.89845]
[1721223192701,2.89781,3450.9,3449.8,10.26868]
[1721223192870,3.0,3450.8,3449.9,1.026868]
[1721223193396,3.0,3450.8,3450.1,2.89839]
[1721223193563,0.8661727,3451.8,3450.3,2.89822]
[1721223193564,3.0,3451.0,3450.3,2.89822]
[1721223193790,3.0,3451.0,3449.9,3.925468]
[1721223193791,2.89777,3451.0,3449.9,3.925468]
[1721223193992,5.89781,3450.9,3450.0,4.0280568]
[1721223194303,3.0,3450.9,3450.2,2.89838]
[1721223194502,2.4752,3451.9,3450.5,1.7]
[1721223194700,2.89665,3452.3,3451.3,2.89745]
[1721223194908,5.37157,3452.6,3451.4,2.89736]
[1721223195215,5.37157,3452.6,3451.5,0.05793903]
[1721223195424,5.37157,3452.6,3451.5,0.7552829]
[1721223195425,2.4752,3452.6,3451.5,0.7552829]
[1721223195602,2.4752,3453.3,3451.7,4.754]
[1721223195793,2.4752,3453.3,3451.6,0.55]
[1721223195794,2.4752,3453.3,3452.1,4.59678]
[1721223195994,2.89593,3453.2,3452.1,2.89678]
[1721223196235,2.89637,3452.6,3451.5,4.59728]
[1721223196390,2.4752,3453.3,3451.9,1.7]
[1721223196590,10.44284,3453.9,3452.3,1.7]
[1721223196591,2.89537,3453.8,3452.3,1.7]
[1721223196808,2.89482,3454.5,3453.2,2.89583]
[1721223197007,2.89478,3454.5,3453.3,2.89576]
[1721223197206,2.89489,3454.4,3453.3,2.89576]
[1721223197737,2.89478,3454.5,3453.3,2.89576]
[1721223197738,2.89479,3454.5,3453.3,2.89576]
[1721223197889,2.89479,3454.5,3453.4,0.839576]
[1721223198096,2.89486,3454.4,3453.4,0.289576]
[1721223198290,2.4752,3454.8,3453.4,3.185206]
[1721223198490,3.14218,3454.7,3453.6,2.8955]
[1721223198717,2.89478,3454.5,3453.7,0.05790153]
[1721223198890,5.3692,3455.5,3453.8,0.05790159]
[1721223199093,2.89438,3455.0,3453.9,0.60789635]
[1721223199296,2.89411,3455.3,3453.9,0.60789635]
[1721223199297,2.89411,3455.3,3454.0,3.054]
[1721223199502,0.88312,3455.4,3454.2,3.054]
[1721223199699,2.89394,3455.5,3454.6,2.89469]
[1721223199900,2.89394,3455.5,3454.4,2.89477]
[1721223199901,2.89406,3455.4,3454.4,2.89477]
[1721223200106,2.89403,3455.4,3454.1,7.37]
[1721223200341,2.89447,3454.9,3454.1,7.37]
[1721223200491,0.289447,3454.8,3454.1,7.37]
[1721223200688,2.89378,3455.7,3453.5,2.8956]
[1721223200689,2.89485,3454.5,3453.5,2.8956]
[1721223200939,2.89486,3454.4,3453.5,2.8956]
[1721223201140,5.8947,3454.6,3453.5,2.8956]
[1721223201361,2.89477,3454.5,3453.6,2.89552]
[1721223201662,5.89487,3454.4,3453.5,1.621538]
[1721223201877,2.89479,3454.5,3453.4,7.37]
[1721223202074,2.89509,3454.2,3453.3,2.89576]
[1721223202238,2.89488,3454.4,3453.1,4.59588]
[1721223202451,4.80785525,3457.5,3453.0,3.054]
[1721223202452,3.0,3454.3,3453.8,2.89535]
[1721223202654,2.89457,3454.8,3453.5,4.754]
[1721223202655,2.89484,3454.5,3453.6,2.89546]
[1721223202861,2.89461,3454.7,3453.7,2.89543]
[1721223202862,3.0,3454.4,3453.7,2.89543]
[1721223203029,2.89445,3454.9,3453.9,1.7]
[1721223203030,3.0,3454.6,3453.9,1.7]
[1721223203229,2.89453,3454.8,3453.9,1.7]
[1721223203450,3.0,3454.7,3453.9,1.7]
[1721223203655,3.0,3454.7,3454.0,3.44518]
[1721223203933,2.89427,3455.1,3454.2,2.89502]
[1721223204266,2.89376,3455.8,3454.0,3.44518]
[1721223204267,2.89375,3455.8,3454.5,5.9487]
[1721223204470,1.019375,3455.8,3454.8,2.89452]
[1721223204667,1.019375,3455.8,3454.9,0.55]
[1721223204668,2.89369,3455.8,3454.9,0.55]
[1721223204997,2.89345,3456.1,3454.9,3.44439]
[1721223205184,2.3605,3456.4,3454.6,3.65954]
[1721223205464,2.89393,3455.6,3454.8,2.89452]
[1721223205966,2.89376,3455.8,3454.8,2.89452]
[1721223206167,2.89353,3456.0,3454.9,4.5944]
[1721223206324,2.3605,3456.4,3454.9,2.8944]
[1721223206325,2.8936,3455.9,3454.9,2.8944]
[1721223206530,2.89377,3455.7,3454.7,0.55]
[1721223206725,3.0,3455.6,3454.9,2.89443]
[1721223207081,5.89371,3455.8,3454.9,2.89443]
[1721223207431,3.878731,3455.8,3454.9,4.59443]
[1721223207659,0.878731,3455.8,3454.9,2.89443]
[1721223207839,0.878731,3455.8,3454.7,0.55]
[1721223207840,2.89395,3455.5,3454.7,0.55]
[1721223208164,3.0,3455.4,3454.6,3.44467]
[1721223208363,3.0,3455.4,3454.7,2.89458]
[1721223208566,3.0,3455.4,3454.8,0.55]
[1721223208781,3.0,3455.4,3454.4,2.89479]
[1721223209080,3.0,3455.4,3454.7,2.89454]
[1721223209290,3.0,3455.5,3454.8,0.55]
[1721223209470,2.89412,3455.3,3454.5,5.14471]
[1721223209661,5.89394,3455.5,3454.7,2.89458]
[1721223209862,5.89394,3455.5,3454.8,0.55]
[1721223210477,2.89455,3454.8,3454.0,7.37]
[1721223210682,2.89439,3455.0,3454.0,2.89518]
[1721223210884,2.89439,3455.0,3453.8,2.89536]
[1721223210885,2.89457,3454.8,3453.8,2.89536]
[1721223211047,5.89436,3455.0,3453.6,2.89547]
[1721223211048,2.89479,3454.5,3453.6,2.89547]
[1721223211383,2.89453,3454.8,3453.9,4.59527]
[1721223211557,3.0,3454.7,3453.9,4.59527]
[1721223211742,5.8946,3454.7,3453.9,4.59527]
[1721223211940,2.89469,3454.6,3453.7,4.211496]
[1721223212140,3.773605,3454.6,3453.5,4.59557]
[1721223212345,2.89481,3454.5,3453.7,2.89544]
[1721223212583,2.89481,3454.5,3453.8,0.55]
[1721223212786,2.89481,3454.5,3453.6,0.55]
[1721223213388,3.0,3454.7,3453.6,0.55]
[1721223213389,3.0,3454.7,3453.9,4.59526]
[1721223213698,3.0,3454.9,3454.3,1.7]
[1721223213861,2.89412,3455.3,3454.4,0.55]
[1721223214042,2.89388,3455.6,3454.7,1.7]
[1721223214247,2.89388,3455.6,3454.8,3.44452]
[1721223214751,2.89385,3455.6,3454.8,3.44452]
[1721223214944,2.89331,3456.3,3454.8,3.44452]
[1721223215182,2.89386,3455.6,3454.9,1.10932]
[1721223215387,2.89368,3455.8,3455.0,0.55]
[1721223215573,2.89361,3455.9,3455.1,2.89425]
[1721223215749,2.89361,3455.9,3455.2,0.55]
[1721223216901,2.3605,3456.5,3455.2,0.55]
[1721223216902,3.0,3455.8,3455.2,0.55]
[1721223217198,5.25362,3456.5,3455.4,2.89396]
[1721223217199,2.89332,3456.3,3455.4,2.89396]
[1721223217503,2.89311,3456.5,3455.6,2.89383]
[1721223217782,0.1489495,3456.9,3455.6,2.89383]
[1721223217783,0.1489495,3456.9,3455.8,1.7]
[1721223217998,0.1489495,3456.9,3455.7,0.55]
[1721223218290,2.8932,3456.4,3455.7,0.55]
[1721223219082,5.89327,3456.3,3455.5,0.55]
[1721223219303,3.589327,3456.3,3454.9,2.80932]
[1721223219587,2.8935,3456.1,3455.0,3.4443]
[1721223219789,2.89369,3455.8,3455.0,3.4443]
[1721223220135,5.89341,3456.2,3455.3,2.89409]
[1721223220327,3.0,3456.2,3455.4,0.55]
[1721223220503,3.0,3456.2,3455.4,1.489235]
[1721223220836,5.89336,3456.2,3455.4,1.489235]
[1721223221243,2.89362,3455.9,3454.9,1.10932]
[1721223221392,2.89387,3455.6,3454.9,1.10932]
[1721223221598,2.89379,3455.7,3454.9,1.10932]
[1721223221899,5.89374,3455.8,3455.0,2.89428]
[1721223222503,3.0,3455.8,3455.1,2.89425]
[1721223222703,2.89348,3456.1,3455.2,2.89418]
[1721223222914,5.89352,3456.0,3455.2,2.89418]
[1721223223324,3.0,3456.0,3455.3,4.328343]
[1721223223552,3.0,3456.0,3455.3,1.434243]
[1721223223851,5.89352,3456.0,3455.3,1.434243]
[1721223224533,3.0,3456.0,3455.3,1.434243]
[1721223224836,5.89343,3456.1,3455.3,3.134243]
[1721223225019,5.89343,3456.1,3455.4,0.6028423]
[1721223225615,2.89327,3456.3,3455.4,0.6028423]
[1721223225816,2.89313,3456.5,3455.7,1.7]
[1721223226377,2.89296,3456.7,3455.8,0.55]
[1721223226522,3.0417395,3456.9,3455.8,0.55]
[1721223226716,3.0417395,3456.9,3456.0,2.89349]
[1721223227021,3.0417395,3456.9,3456.1,0.55]
[1721223227022,2.89295,3456.7,3456.1,0.55]
[1721223227348,2.89295,3456.7,3456.0,0.55]
[1721223227714,2.8931,3456.5,3456.0,0.55]
[1721223227914,2.89319,3456.4,3455.7,2.89375]
[1721223228120,2.89319,3456.4,3455.8,2.171159]
[1721223228543,2.89319,3456.4,3455.8,0.55]
[1721223228760,2.89328,3456.3,3455.5,10.26387]
[1721223228973,2.89328,3456.3,3455.6,0.55]
[1721223229118,2.89304,3456.6,3455.6,3.44383]
[1721223229318,3.0417595,3456.9,3455.6,3.44383]
[1721223229319,2.89332,3456.3,3455.7,1.43105423]
[1721223229658,2.89335,3456.2,3455.6,0.55]
[1721223230750,2.89324,3456.4,3455.6,0.55]
[1721223230953,3.0,3456.3,3455.6,0.55]
[1721223231161,5.89329,3456.3,3455.6,0.55]
[1721223231367,5.89329,3456.3,3455.6,2.23950753]
[1721223231562,3.0,3456.3,3455.7,1.7]
[1721223232329,5.89287,3456.8,3455.9,2.8936]
[1721223232839,5.89287,3456.8,3456.0,3.4435]
[1721223233036,5.89287,3456.8,3456.1,0.688704]
[1721223233253,8.78579,3456.8,3456.1,0.688704]
[1721223233453,5.89287,3456.8,3456.1,0.688704]
[1721223233628,2.89287,3456.8,3456.1,0.688704]
[1721223233822,3.0417395,3456.9,3456.2,0.0578588]
[1721223234171,3.0417395,3456.9,3456.3,2.95110843]
[1721223234172,0.1489495,3456.9,3456.3,2.95110843]
[1721223234326,0.1489495,3456.9,3456.4,3.44317]
[1721223234925,0.1489495,3456.9,3456.5,2.89309]
[1721223235136,0.1489495,3456.9,3456.6,0.633626]
[1721223236343,2.89288,3456.8,3456.0,2.8935]
[1721223236566,2.89288,3456.8,3456.1,0.55]
[1721223236755,2.89288,3456.8,3456.1,3.44342]
[1721223237051,2.89288,3456.8,3456.1,0.55]
[1721223237052,2.89295,3456.7,3456.1,0.55]
[1721223237344,2.89295,3456.7,3456.0,0.55]
[1721223237550,2.89307,3456.6,3455.8,2.89368]
[1721223237875,2.89311,3456.5,3455.8,2.89368]
[1721223238181,2.89311,3456.5,3455.9,1.10609642]
[1721223238673,2.89318,3456.4,3455.9,1.10609642]
[1721223239190,2.89307,3456.6,3455.9,1.10609642]
[1721223239477,2.8931,3456.5,3455.9,1.10609642]
[1721223239662,2.89308,3456.6,3455.9,1.10609642]
[1721223239865,2.89308,3456.6,3456.0,0.85934664]
[1721223240064,2.8931,3456.5,3456.0,0.85934664]
[1721223240576,2.8932,3456.4,3455.9,1.10609642]
[1721223240744,2.89308,3456.6,3455.9,1.10609642]
[1721223241093,2.89318,3456.4,3455.9,1.10609642]
[1721223241298,2.89334,3456.3,3455.6,7.37]
[1721223241463,3.0,3456.2,3455.4,0.6028423]
[1721223241778,2.3679,3456.6,3455.4,3.4968023]
[1721223241968,2.89331,3456.3,3455.4,3.4968023]
[1721223242169,5.89289,3456.8,3455.9,2.89353]
[1721223242378,0.1489495,3456.9,3455.7,4.754]
[1721223242379,0.1489495,3456.9,3456.0,3.658193]
[1721223242556,0.1489495,3456.9,3456.4,2.89317]
[1721223242769,0.1489495,3456.9,3456.5,0.55]
[1721223245240,3.0417495,3456.9,3456.3,0.55]
[1721223245443,3.0417495,3456.9,3456.3,0.87692851]
[1721223245991,0.1489495,3456.9,3456.4,0.55]
[1721223246907,0.1489495,3456.9,3456.4,3.44313]
[1721223247090,0.1489495,3456.9,3456.5,0.60200585]
[1721223247293,0.1489495,3456.9,3456.6,2.89294]
[1721223247611,0.1489495,3456.9,3456.6,3.44294]
[1721223248392,0.1489495,3456.9,3456.6,0.55]
[1721223248798,0.1489495,3456.9,3456.6,3.443]
[1721223249006,0.1489495,3456.9,3456.7,0.69381359]
[1721223249303,0.1489495,3456.9,3456.7,3.58673359]
[1721223249504,0.1489495,3456.9,3456.8,3.44284]
[1721223250464,5.25986,3457.9,3457.0,2.89267]
[1721223250775,2.3679,3457.9,3456.8,2.25]
[1721223250959,2.89217,3457.7,3456.9,0.59978136]
[1721223251411,2.89218,3457.6,3456.9,0.59978136]
[1721223251901,2.89218,3457.6,3456.9,3.49253136]
[1721223252096,2.8923,3457.5,3456.9,0.59978136]
[1721223252796,2.8923,3457.5,3456.7,3.58667359]
[1721223252797,2.89226,3457.5,3456.7,3.58667359]
[1721223253004,2.3679,3457.9,3456.8,0.55]
[1721223253005,2.89223,3457.6,3456.8,0.55]
[1721223253312,2.89187,3458.0,3456.8,2.25]
[1721223253460,3.0,3457.9,3457.2,2.8925]
[1721223253656,3.0,3457.9,3456.8,2.25]
[1721223253856,2.89166,3458.3,3457.3,1.7]
[1721223254066,2.89166,3458.3,3457.5,2.89221]
[1721223255304,2.3679,3458.4,3457.6,2.89217]
[1721223255506,3.0,3458.4,3457.7,2.89203]
[1721223255814,2.89132,3458.7,3457.8,2.892]
[1721223256105,3.0,3458.6,3457.9,0.578403]
[1721223256814,3.0,3458.6,3457.9,3.470313]
[1721223257112,3.0,3458.8,3458.0,0.55]
[1721223257418,5.25852,3459.5,3458.1,4.59174]
[1721223257742,5.25852,3459.5,3458.1,4.9937713]
[1721223257743,2.89106,3459.0,3458.1,4.9937713]
[1721223258269,2.8911,3458.9,3458.1,4.9937713]
[1721223258468,2.89106,3459.0,3458.1,0.4020313]
[1721223258469,2.89118,3458.8,3458.1,0.4020313]
[1721223258865,3.0,3459.2,3457.6,7.37]
[1721223259167,5.25854,3459.5,3457.7,4.59209]
[1721223259168,2.89123,3458.8,3457.7,4.59209]
[1721223259371,2.89126,3458.7,3457.8,2.051009]
[1721223259597,2.89144,3458.5,3457.8,2.051009]
[1721223260009,2.89152,3458.4,3457.8,2.051009]
[1721223260166,2.89177,3458.1,3457.6,7.37]
[1721223260373,2.89184,3458.0,3457.1,7.37]
[1721223260571,2.89194,3457.9,3457.3,4.0]
[1721223260766,2.89181,3458.1,3457.2,2.89249]
[1721223260972,2.89165,3458.3,3457.4,2.89233]
[1721223261553,3.0,3458.5,3457.8,2.892]
[1721223261835,3.0,3458.5,3457.7,4.59203]
[1721223262000,2.3679,3459.0,3457.8,0.55]
[1721223262001,2.89127,3458.7,3457.8,0.55]
[1721223262194,3.0,3458.6,3457.8,1.603225]
[1721223262428,5.89135,3458.6,3457.8,1.603225]
[1721223262627,3.0,3458.6,3457.8,1.603225]
[1721223262790,3.0,3458.8,3458.1,2.89171]
[1721223263137,5.8911,3458.9,3458.2,0.55]
[1721223263288,3.0,3458.9,3457.7,1.7]
[1721223263630,2.3679,3459.0,3457.7,4.59208]
[1721223263631,2.89134,3458.6,3457.7,4.59208]
[1721223263836,3.0,3458.5,3457.8,1.790226]
[1721223264046,2.89068,3459.4,3458.3,3.048]
[1721223264047,2.89067,3459.4,3458.3,3.048]
[1721223264341,2.89056,3459.6,3458.6,4.59133]
[1721223264489,2.3672,3459.7,3458.6,4.59133]
[1721223264490,5.25769,3459.7,3458.7,2.89124]
[1721223264697,5.25769,3459.7,3458.8,1.298257]
[1721223265019,2.3672,3459.7,3458.9,2.89108]
[1721223265323,2.3672,3459.7,3459.0,0.55]
[1721223265701,0.1489495,3460.3,3459.1,4.5909]
[1721223265912,2.89009,3460.1,3459.2,3.44077]
[1721223266086,2.89009,3460.1,3459.3,1.162967]
[1721223266286,2.89009,3460.1,3459.4,0.55]
[1721223266525,2.89009,3460.1,3459.3,1.162967]
[1721223268139,2.89018,3460.0,3459.3,1.162967]
[1721223268299,3.0,3459.9,3459.2,0.55]
[1721223268506,3.0,3459.9,3459.2,3.44083]
[1721223268827,2.89007,3460.2,3459.3,2.89071]
[1721223268991,0.1489495,3460.3,3459.5,2.89058]
[1721223269525,0.1489495,3460.3,3459.5,4.59058]
[1721223270402,0.1489495,3460.3,3459.6,0.55]
[1721223270805,0.1489495,3460.3,3459.6,3.44044]
[1721223271002,0.1489495,3460.3,3459.4,0.803157]
[1721223271224,2.89012,3460.1,3459.4,0.803157]
[1721223271406,3.0389395,3460.3,3459.5,0.3693827]
[1721223271407,0.1489495,3460.3,3459.5,0.3693827]
[1721223271748,0.1489495,3460.3,3459.7,2.8904]
[1721223272098,0.1489495,3460.3,3459.6,0.55]
[1721223272421,0.1489495,3460.3,3459.5,0.3693827]
[1721223272624,2.89003,3460.2,3459.5,0.3693827]
[1721223272923,2.89003,3460.2,3459.6,0.57632897]
[1721223273121,3.0388795,3460.3,3459.6,0.57632897]
[1721223273524,0.1489495,3460.3,3459.6,0.57632897]
[1721223273699,0.1489495,3460.3,3459.6,3.46682897]
[1721223273903,0.1489495,3460.3,3459.7,0.84267817]
[1721223274131,0.1489495,3460.3,3459.7,3.73304817]
[1721223274334,0.1489495,3460.3,3459.8,0.55]
[1721223274998,0.1489495,3460.3,3459.9,2.89025]
[1721223275197,0.1489495,3460.3,3460.0,3.49788315]
[1721223275400,0.1489495,3460.3,3460.1,0.86381332]
[1721223276041,0.1489495,3460.3,3459.0,7.37]
[1721223276195,2.8902,3460.0,3459.2,4.0]
[1721223276396,2.89058,3459.6,3459.2,4.0]
[1721223276632,2.8906,3459.5,3459.2,4.0]
[1721223276841,2.8906,3459.5,3458.7,4.59124]
[1721223277139,2.8906,3459.5,3458.8,1.715075]
[1721223277337,2.89088,3459.2,3458.5,7.37]
[1721223277647,2.89078,3459.3,3458.1,2.89176]
[1721223277933,5.89082,3459.3,3458.3,1.7]
[1721223278136,3.0,3459.5,3458.6,2.89133]
[1721223278137,3.0,3459.2,3458.6,2.89133]
[1721223278335,3.0,3459.5,3458.6,2.89133]
[1721223278641,3.0,3459.4,3458.7,0.289133]
[1721223278857,3.0,3459.4,3458.7,1.989133]
[1721223279144,2.3672,3459.9,3458.7,1.989133]
[1721223279145,5.25747,3459.9,3458.7,4.880383]
[1721223279297,2.89019,3460.0,3459.0,2.89099]
[1721223279503,5.89019,3460.0,3459.0,2.89099]
[1721223279808,5.25709,3460.4,3459.2,1.7]
[1721223280003,5.25709,3460.4,3459.3,0.459091]
[1721223280202,2.8897,3460.6,3459.7,2.89042]
[1721223280604,2.3672,3460.9,3459.7,2.89042]
[1721223280605,2.88958,3460.7,3459.7,2.89042]
[1721223281413,2.88958,3460.7,3459.8,2.89033]
[1721223281611,2.88967,3460.6,3459.8,2.89033]
[1721223281816,2.88967,3460.6,3459.9,0.459033]
[1721223281999,2.3672,3460.9,3459.9,0.459033]
[1721223282000,2.88975,3460.5,3459.9,0.459033]
[1721223282214,2.88976,3460.5,3459.3,0.459091]
[1721223282416,2.88971,3460.6,3459.6,2.89048]
[1721223283007,2.88971,3460.6,3459.7,2.8904]
[1721223283231,2.88971,3460.6,3459.8,0.578088]
[1721223283618,3.0,3460.9,3459.8,4.576188]
[1721223283943,3.0,3460.8,3459.9,2.89025]
[1721223284243,3.0,3460.8,3460.0,2.89017]
[1721223284453,3.0,3460.8,3459.8,3.468358]
[1721223284454,5.88951,3460.8,3459.8,3.468358]
[1721223284623,5.88951,3460.8,3459.8,0.578088]
[1721223284624,6.767386,3460.8,3459.8,0.578088]
[1721223284822,6.767386,3460.8,3459.3,3.349771]
[1721223284823,2.89001,3460.2,3459.3,3.349771]
[1721223285144,2.89025,3460.0,3459.3,0.459091]
[1721223285457,2.89025,3460.0,3458.8,7.8580383]
[1721223285458,2.89035,3459.8,3458.8,7.8580383]
[1721223285621,2.89035,3459.8,3458.9,4.0]
[1721223285821,2.89035,3459.8,3458.8,0.4880383]
[1721223286157,3.0,3460.4,3458.3,9.07]
[1721223286158,3.0,3459.7,3458.3,9.07]
[1721223286303,2.89081,3459.3,3458.4,2.89147]
[1721223286511,2.8907,3459.4,3458.5,2.89141]
[1721223286742,2.8907,3459.4,3458.6,1.485294]
[1721223286943,3.0,3459.8,3458.6,1.485294]
[1721223286944,2.89042,3459.7,3458.7,1.7]
[1721223287118,3.0,3459.6,3458.8,2.89111]
[1721223287317,3.0,3459.8,3459.1,1.7]
[1721223287641,3.0,3459.8,3458.9,0.9124404]
[1721223287642,3.0,3459.7,3458.9,0.9124404]
[1721223287852,3.0,3459.7,3458.9,3.8035304]
[1721223288410,2.8908,3459.3,3458.6,1.485294]
[1721223289243,2.89092,3459.1,3458.6,1.485294]
[1721223289810,2.3672,3459.5,3458.5,1.7]
[1721223289811,2.89067,3459.4,3458.5,1.7]
[1721223290044,2.89081,3459.3,3458.5,1.7]
[1721223290238,5.25784,3459.5,3458.6,2.89128]
[1721223290620,5.89044,3459.7,3458.8,2.89111]
[1721223290621,5.89047,3459.7,3458.8,2.89111]
[1721223290832,5.89047,3459.7,3458.9,0.578236]
[1721223291031,2.89051,3459.6,3458.8,2.89111]
[1721223291217,3.0,3459.5,3458.8,2.89111]
[1721223291424,3.0,3459.5,3459.1,2.89092]
[1721223291747,3.0,3459.9,3459.1,2.89092]
[1721223291947,2.89043,3459.7,3459.2,0.514092]
[1721223292112,3.0,3459.6,3458.9,2.89108]
[1721223292312,3.0,3459.6,3458.9,4.59108]
[1721223292651,2.89009,3460.1,3459.2,2.89084]
[1721223292652,3.0,3460.0,3459.2,2.89084]
[1721223292849,2.88993,3460.3,3459.3,1.7]
[1721223293050,2.88993,3460.3,3459.4,2.8906]
[1721223293261,2.88989,3460.4,3459.5,3.34965]
[1721223293553,2.3672,3460.6,3459.5,0.45906]
[1721223293863,2.3672,3460.6,3459.2,2.89079]
[1721223293864,2.8902,3460.0,3459.2,2.89079]
[1721223294012,2.8902,3460.0,3459.2,5.78156]
[1721223294211,2.88992,3460.3,3459.4,2.89065]
[1721223294409,2.89027,3459.9,3458.7,2.2981]
[1721223294706,2.89027,3459.9,3459.1,2.89087]
[1721223295132,2.89027,3459.9,3458.9,2.891]
[1721223295346,5.6492,3460.6,3458.5,2.89137]
[1721223295347,3.0,3459.8,3458.5,2.89137]
[1721223295534,5.6492,3460.6,3458.7,2.89124]
[1721223295535,2.89065,3459.5,3458.7,2.89124]